Cogmind - Beta 11 @@@ ROGUE MODE // 2022.03.24 @ 13:46:34 Player: Happytimes Result: Self-destructed Performance ------------- Evolutions (1) 500 Regions Visited (4) 800 Robots Destroyed (20) 100 Value Destroyed (312) 312 Prototype IDs (3) 60 Alien Tech Used (0) 0 Bonus (200) 200 TOTAL SCORE: 1972 Bonus ------- Pacifist 200 Cogmind --------- Core Integrity 259/400 Matter 300/300 Energy 100/100 System Corruption 0% Temperature Cool (0) Movement Hovering (120) Ox1 Location -9/Storage Parts ------- > --- POWER (1) -------- (None) > --- PROPULSION (3) --- Improved Hover Unit > --- UTILITY (3) ------ Small Storage Unit > --- WEAPON (2) ------- Mace Flail > --- INVENTORY (8) ---- Cooling System Grenade Launcher Mace Mace Mace Peak State ------------ > --- POWER ------------ Ion Engine > --- PROPULSION ------- Improved Hover Unit Improved Hover Unit Improved Hover Unit > --- UTILITY ---------- Small Storage Unit Medium Armor Plating > --- WEAPON ----------- Mace Mace > --- INVENTORY -------- Improved Hover Unit Cooling System Grenade Launcher Mace Mace Flail [Rating: 15] Favorites ----------- Power Ion Engine Engine Ion Engine Propulsion Improved Hover Unit Leg Aluminum Leg Hover Unit Improved Hover Unit Flight Unit VTOL Module Utility Small Storage Unit Storage Small Storage Unit Protection Medium Armor Plating Weapon Mace Energy Gun EM Pulse Gun Energy Cannon Advanced Beam Cannon Ballistic Gun Assault Rifle Impact Weapon Mace Build | -11 -10 -10 -9 -9 ------- Run | Scr Mat Min Mat Sto Slots Evolved 2 | . . . 2 . Power . | . . . . . Propulsion 1 | . . . 1 . Utility 1 | . . . 1 . Weapon . | . . . . . Parts Attached 27 | 6 4 . 4 13 Power 5 | 1 . . 1 3 Engine 5 | 1 . . 1 3 Core . | . . . . . Reactor . | . . . . . Propulsion 13 | 2 2 . 1 8 Treads . | . . . . . Leg 2 | 2 . . . . Wheel . | . . . . . Hover 9 | . 2 . 1 6 Flight 2 | . . . . 2 Utility 2 | 1 . . 1 . Device . | . . . . . Storage 1 | 1 . . . . Processor . | . . . . . Hackware . | . . . . . Protection 1 | . . . 1 . Artifact . | . . . . . Weapon 7 | 2 2 . 1 2 Energy Gun 1 | 1 . . . . Energy Cannon 1 | . . . . 1 Ballistic Gun 1 | 1 . . . . Ballistic Cannon . | . . . . . Launcher . | . . . . . Special Weapon . | . . . . . Impact Weapon 4 | . 2 . 1 1 Slashing Weapon . | . . . . . Piercing Weapon . | . . . . . Special Melee Weapon . | . . . . . Unidentified Prototypes 3 | . . . . 3 Parts Lost 7 | . . . . 7 Power 1 | . . . . 1 Propulsion 5 | . . . . 5 Utility 1 | . . . . 1 Weapon . | . . . . . Highest Loss Streak 5 | . . . . 5 To Critical Strikes . | . . . . . Average Slot Usage (%) 78 | . 83 85 88 67 Engine 10 | . 14 14 11 8 Leg 2 | . 9 . . . Hover 25 | . 17 28 33 23 Flight 1 | . . . . 2 Storage 11 | . 14 14 11 11 Protection 3 | . . . 11 . Energy Gun 1 | . 7 . . . Ballistic Gun 1 | . 7 . . . Impact Weapon 20 | . 14 28 22 21 Naked Turns . | . . . . . Heaviest Build 21 | 14 14 14 21 19 Greatest Support 21 | 20 20 14 21 21 Greatest Overweight (x) 2 | . 1 . . 2 Average Overweight (x) . | . . . . . Largest Inventory Capacity 8 | 8 8 8 8 8 Average Capacity 7 | 6 8 8 8 8 Most Carried 8 | 5 6 7 8 8 Average Carried 5 | 1 2 6 5 7 Final Capacity 8 | 8 8 8 8 8 Final Carried 8 | . 6 7 8 5 Class Distribution -------------------- 100% | Mutant Dominant Class ---------------- Mutant | -10/Materials Mutant | -10/Mines Mutant | -9/Materials Mutant | -9/Storage Resources | -11 -10 -10 -9 -9 ----------- Run | Scr Mat Min Mat Sto Matter Collected 445 | 248 . . 92 105 Remotely . | . . . . . Salvage Created 596 | . . . 207 389 Parts 19 | . . . 7 12 Haulers Intercepted 2 | . . . . 2 Recyclers Shooed . | . . . . . Parts Field Recycled . | . . . . . Retrieved Matter . | . . . . . Parts Self-Destructed . | . . . . . Prevented . | . . . . . Kills | -11 -10 -10 -9 -9 ------- Run | Scr Mat Min Mat Sto Combat Hostiles Destroyed 12 | . . . 4 8 Melee 8 | . . . 4 4 Classes Destroyed 7 | . . . 3 4 Worker 2 | . . . . 2 Hauler 2 | . . . . 2 Recycler 3 | . . . 2 1 Operator 1 | . . . . 1 Swarmer 7 | . . . 3 4 Grunt 3 | . . . . 3 Sentry 2 | . . . 1 1 Best Kill Streak 8 | . . . 3 8 Combat Bots Only 4 | . . . 3 4 Max Kills in Single Turn 1 | . . . 1 1 Gunslinging . | . . . . . Exploded . | . . . . . Melee 1 | . . . 1 1 Uniques/NPCs Destroyed . | . . . . . Combat | -11 -10 -10 -9 -9 -------- Run | Scr Mat Min Mat Sto Damage Taken 858 | . . 91 212 555 Core 187 | . . 46 10 131 Absorbed by Shields . | . . . . . Core Remaining (%) 90 | 100 . 81 . . Volleys Fired . | . . . . . Largest . | . . . . . Hottest . | . . . . . Shots Fired . | . . . . . Gun . | . . . . . Cannon . | . . . . . Launcher . | . . . . . Special . | . . . . . Kinetic . | . . . . . Thermal . | . . . . . Explosive . | . . . . . Electromagnetic . | . . . . . Robot Hit Streak . | . . . . . Robot Miss Streak . | . . . . . Penetration Max . | . . . . . Secondary Targets . | . . . . . Shots Hit Robots 41 | . . . 10 31 Core Hits 8 | . . . 4 4 Critical Kills 1 | . . . . 1 Critical Parts Destroyed 6 | . . . 1 5 Critical Strikes 8 | . . . 1 7 Smash 8 | . . . 1 7 Melee Attacks 57 | . 1 . 12 44 Impact 57 | . 1 . 12 44 Slashing . | . . . . . Piercing . | . . . . . Sneak Attacks 7 | . . . 2 5 Combat Hostiles . | . . . . . Follow-up Attacks 5 | . . . 1 4 Damage Inflicted 1660 | . . . 406 1254 Guns . | . . . . . Cannons . | . . . . . Explosions . | . . . . . Melee 1660 | . . . 406 1254 Ramming . | . . . . . Kinetic . | . . . . . Thermal . | . . . . . Explosive . | . . . . . Electromagnetic . | . . . . . Impact 1660 | . . . 406 1254 Slashing . | . . . . . Piercing . | . . . . . Highest Corruption . | . . . . . Average Corruption . | . . . . . Corruption Purged . | . . . . . Corruption Blocked . | . . . . . Overload Shots . | . . . . . Overflow Damage 483 | . . . 60 423 Projectiles . | . . . . . Explosions . | . . . . . Melee 483 | . . . 60 423 Knockbacks 2 | . . . . 2 Impact 2 | . . . . 2 Kinetic . | . . . . . Secondary . | . . . . . Self-Inflicted Damage . | . . . . . Shots . | . . . . . Rammed . | . . . . . Targets Rammed . | . . . . . Kicked . | . . . . . Crushed . | . . . . . Highest Temperature 9 | . . . . 9 Average Temperature 9 | . . . . 9 Received Heat Transfer 273 | . . 9 54 210 Siege Activations . | . . . . . Robots Corrupted . | . . . . . Combat Hostiles . | . . . . . Parts Fried 13 | . . . 2 11 Impact Corruptions 21 | . . . 3 18 Robots Melted . | . . . . . Combat Hostiles . | . . . . . Parts Melted . | . . . . . Heat Transferred . | . . . . . Parts Sabotaged . | . . . . . Parts Stolen . | . . . . . Parts Stripped . | . . . . . Power Chain Reactions . | . . . . . Missiles Intercepted . | . . . . . Alert | -11 -10 -10 -9 -9 ------- Run | Scr Mat Min Mat Sto Peak Influence 348 | . 22 8 277 348 Initial 117 | . . 8 2 117 Average 137 | . 7 8 158 237 Maximum Alert Level 1 | . . . 1 1 Low Security (%) 59 | 100 100 100 57 24 Level 1 40 | . . . 42 75 Level 2 . | . . . . . Level 3 . | . . . . . Level 4 . | . . . . . Level 5 . | . . . . . High Security . | . . . . . Max Security . | . . . . . Squads Dispatched 2 | . . . . 2 Investigation . | . . . . . Extermination . | . . . . . Reinforcement 1 | . . . . 1 Assault . | . . . . . Garrison 1 | . . . . 1 Intercept . | . . . . . Searches Triggered . | . . . . . Construction Impeded . | . . . . . Haulers Reinforced . | . . . . . Active Scanning Responses . | . . . . . Cargo Convoy Interrupts . | . . . . . Stealth | -11 -10 -10 -9 -9 --------- Run | Scr Mat Min Mat Sto Distress Signals 2 | . . . 1 1 Communications Jammed . | . . . . . Distress Signals . | . . . . . Times Spotted 26 | . 1 4 9 12 Peak Tracking Total 8 | . 1 4 8 8 Tactical Retreats 3 | . . . 2 1 Traps | -11 -10 -10 -9 -9 ------- Run | Scr Mat Min Mat Sto Traps Triggered . | . . . . . Indirectly . | . . . . . Trap Hack Attempts . | . . . . . Triggered . | . . . . . Disarmed . | . . . . . Reprogrammed . | . . . . . Reused . | . . . . . Traps Extracted . | . . . . . Installed . | . . . . . Triggered . | . . . . . Machines | -11 -10 -10 -9 -9 ---------- Run | Scr Mat Min Mat Sto Machines Disabled 1 | . . . . 1 Max in Single Turn 1 | . . . . 1 Machines Sabotaged . | . . . . . Garrisons Compromised . | . . . . . Overloaded Fab Kills . | . . . . . Hacking | -11 -10 -10 -9 -9 --------- Run | Scr Mat Min Mat Sto Machines Accessed 3 | . 1 . . 2 Terminals 3 | . 1 . . 2 Fabricators . | . . . . . Repair Stations . | . . . . . Recycling Units . | . . . . . Scanalyzers . | . . . . . Garrison Access . | . . . . . Total Hacks 4 | . 2 . . 2 Successful 3 | . 1 . . 2 Failed 1 | . 1 . . . Catastrophic . | . . . . . Database Lockouts . | . . . . . Manual . | . . . . . Terminals 4 | . 2 . . 2 Fabricators . | . . . . . Repair Stations . | . . . . . Recycling Units . | . . . . . Scanalyzers . | . . . . . Garrison Access . | . . . . . Terminal Hacks 3 | . 1 . . 2 Open Door 1 | . . . . 1 Patrol Status 1 | . 1 . . . Zone Layout 1 | . . . . 1 Fabricator Hacks . | . . . . . Repair Station Hacks . | . . . . . Recycling Unit Hacks . | . . . . . Scanalyzer . | . . . . . Garrison Access Hacks . | . . . . . Unauthorized Hacks . | . . . . . Terminals . | . . . . . Fabricators . | . . . . . Repair Stations . | . . . . . Recycling Units . | . . . . . Scanalyzers . | . . . . . Garrison Access . | . . . . . Data Cores Recovered 1 | . . . . 1 Used . | . . . . . Hacking Detections 2 | . 1 . . 1 Full Trace Events . | . . . . . Feedback Events . | . . . . . Feedback Blocked . | . . . . . Robot Schematics Acquired . | . . . . . Robots Built . | . . . . . Authchips . | . . . . . Time . | . . . . . Total Robot Build Rating . | . . . . . Part Schematics Acquired . | . . . . . Parts Built . | . . . . . Authchips . | . . . . . Time . | . . . . . Total Part Build Rating . | . . . . . Parts Repaired . | . . . . . Time . | . . . . . Parts Recycled . | . . . . . Recycled Matter . | . . . . . Retrieved Matter . | . . . . . Retrieved Components . | . . . . . Parts Scanalyzed . | . . . . . Part Schematics Acquired . | . . . . . Parts Damaged . | . . . . . Bothacking | -11 -10 -10 -9 -9 ------------ Run | Scr Mat Min Mat Sto Used RIF Installer . | . . . . . Robots Hacked . | . . . . . Non-combat . | . . . . . Combat . | . . . . . Robot Hacks Applied . | . . . . . Relay Couplers Released . | . . . . . Fabnet Peak Effective % . | . . . . . Robots Rewired . | . . . . . Allies Hacked . | . . . . . Hacks Repelled . | . . . . . Allies | -11 -10 -10 -9 -9 -------- Run | Scr Mat Min Mat Sto Total Allies . | . . . . . Largest Group . | . . . . . Highest-Rated Group . | . . . . . Highest-Rated Ally . | . . . . . Total Orders . | . . . . . Ally Attacks . | . . . . . Total Damage . | . . . . . Kills . | . . . . . Allies Corrupted . | . . . . . Allies Melted . | . . . . . Intel | -11 -10 -10 -9 -9 ------- Run | Scr Mat Min Mat Sto Robot Analysis Total . | . . . . . Derelict Logs Recovered . | . . . . . Drone Launches . | . . . . . Drone Recoveries . | . . . . . Exploration | -11 -10 -10 -9 -9 ------------- Run | Scr Mat Min Mat Sto Turns Passed 583 | 47 115 40 149 232 Spaces Moved 581 | 42 135 54 186 164 Core 24 | 21 . . . 3 Treads . | . . . . . Legs 53 | 21 32 . . . Wheels . | . . . . . Hover 504 | . 103 54 186 161 Flight . | . . . . . Fastest Speed 50 | 50 56 56 52 52 Average Speed 62 | 85 71 56 52 62 Slowest Speed 150 | 120 120 56 52 150 Overloaded Moves . | . . . . . Propulsion Burnouts . | . . . . . Robots Hopped . | . . . . . Cave-ins Triggered . | . . . . . Exploration Rate (%) 22 | 3 26 28 19 34 Regions Visited 4 Branch Regions 2 Pre-discovered Areas . | . . . . . Known Exits Taken . | . . . . . Unknown Exits Taken 4 | 1 1 1 1 . Scrap Searched . | . . . . . Spaces Dug . | . . . . . Terrain Destroyed . | . . . . . Melee . | . . . . . Projectile . | . . . . . AOE . | . . . . . Terrain Rammed . | . . . . . Walls Destroyed . | . . . . . Machines Disabled . | . . . . . Actions | -11 -10 -10 -9 -9 --------- Run | Scr Mat Min Mat Sto Total 724 | 52 153 63 218 238 Wait 36 | . . 9 15 12 Move 577 | 41 134 53 185 164 Hop . | . . . . . Pick Up 23 | 5 10 1 3 4 Fast Attach 2 | 1 . . . 1 Attach 18 | 5 4 . 2 7 Detach 1 | . . . . 1 Swap 7 | . . . 2 5 Drop 11 | . 4 . . 7 Fire . | . . . . . Melee 49 | . 1 . 11 37 Ram . | . . . . . Kick . | . . . . . Crush . | . . . . . Escape Stasis . | . . . . . Rewire . | . . . . . Trap . | . . . . . Miscellaneous . | . . . . . Route ------- -11/Scrapyard -10/Materials (discovered 2 exits: [*Mat] / [*Min]) -10/Mines -9/Materials -9/Storage History --------- Turn | Location | Event 6 | -11/Scrapyard | Discovered new exit (range 15) 48 | -11/Scrapyard | Entered Materials 138 | -10/Materials | Discovered new exit (range 16) 149 | -10/Materials | Discovered new exit (range 13) 163 | -10/Materials | Entered Mines 164 | -10/Mines | YI-UF0 nonchalantly dropped a Grenade Launcher on the ground 172 | -10/Mines | Assembled infested the area 196 | -10/Mines | Discovered new exit (range 7) 203 | -10/Mines | Received a Rocket Launcher from a helpful Derelict 203 | -10/Mines | Entered Materials 203 | -9/Materials | Evolved 2 slots: Propulsion x1, Utility x1 311 | -9/Materials | Build established: Mutant 339 | -9/Materials | Discovered new exit (range 16) 352 | -9/Materials | Entered Storage 508 | -9/Storage | Garrison activated, responded to threat 574 | -9/Storage | Lost 5 parts (1p4n) 584 | -9/Storage | Self-destructed Last Messages --------------- 00552_ Destroyed Lgt. Armor Plating. 00552_ Y-45 Defender system corrupted by crushing effect. 00552_ Mace follow-up attack on Y-45 Defender. 00553_ Y-45 Defender system terminally corrupted. 00553_ Lgt. Treads fried. 00560_ Mace follow-up attack on G-34 Mercenary. 00560_ Destroyed Heat Sink. 00560_ G-34 Mercenary system corrupted by crushing effect. 00561_ G-34 Mercenary system terminally corrupted. 00563_ Acquired 11 matter. 00566_ K-01 Serf collects debris. 00568_ Acquired 10 matter. 00569_ K-01 Serf collects debris. 00573_ Sneak attack on K-01 Serf. 00573_ Destroyed Med. Matter Pod. 00573_ K-01 Serf system corrupted by crushing effect. 00573_ Wheel fried. 00573_ K-01 Serf destroyed. 00577_ VTOL Module destroyed. 00581_ Storage Shell breached. Map ----- +----------------------------------------------------+ | ? """ ???# """ #??????###### ### ####### | | ??# #??????## # # # | | """ ??# """ #??????#T + + """ # | | """ ?# """ #??????## ## # """ # | | ????? ?# """ ###????##]]## # """ # | | ????? #??? ""#????##]]## ###### # | | ???????##???"" T"#????##]]## #????# """ # | | ?????????????" ""#????###### #????# """ # | | ?????????????" ###????###### #????# """ # | | ?????????????? #######???## ##???# # | | ?????????########## #####* #???# # | | ???????? =*%]! #???# # | | ????????# *]* T #???# # | | ????????# !]] """ ##### #???####### | | ????????# !]] "Y" #???## ###?????????? | | ????????# !]] #??###+#######?????? | | ????????+ #### ##????? | | ????????# + #????? | | ??????????????+##### ##### ##????? | | ???????????????#####/###### #?????? | | ???????????????## ! / ## """ """ #?????? | | ???????????????## """ *= ## """ """ #?????? | | ???????????????## " """" ## """ """ #?????? | | ???????????????## " "" "Y## #?????? | | ???????????????## " ""[" ######+#####?????? | | ???????????????## """"| =@%m #????????? | | ????????????????# """%#####^g^#????????? | | ????????????????# =Y%#???#^^^#????????? | | ????????????????# * #?????? ?????????? | | ????????????????##########?????? ?????????? | | ???????????????????????????????? ?????????? | | ???????????????????????????????? ?????????? | | ??????????????????????????????????????????? | | ??????????????????????????????????????????? | | ??????????????????????????????????????????? | | ??????????????????????????????????????????? | | ??????????????????????????????????????????? | | ??????????????????????????????????????????? | | ??????????????????????????????????????????? | | ??????????????????????????????????????????? | | ??????????????????????????????????????????? | | ??????????????????????????????????????????? | | ??????????????????????????????????????????? | | ??????????????????????????????????????????? | | ??????????????????????????????????????????? | | ??????????????????????????????????????????? | | ??????????????????????????????????????????? | | ??????????????????????????????????????????? | | ??????????????????????????????????????????? | | ??????????????????????????????????????????? | +----------------------------------------------------+ Best States ------------- Heat Dissipation 28 Energy Generation 10 Energy Capacity 250 Matter Stores 300 Matter Capacity 300 Sight Range 16 Terrain Scan Density 10 Armor Coverage 225 Evasion (%) 55 Item Schematics ----------------- None Robot Schematics ------------------ None Fabricated ------------ Nothing Alien Tech Used ----------------- None Achievements -------------- None Challenges ------------ None Game ------ Seed HeatLightMicrothruster Manual? 0 Play Time 00:11:00 Cumulative 36.9 hours Start 2022.03.24 @ 13:38:58 End 2022.03.24 @ 13:46:34 Sessions 1 Manual Loads 0 Difficulty Rogue Special Mode None Game No. 110 Rogue 110 Adventurer 0 Explorer 0 Win Type - Total 0 Types 0/0/0/0/0/0/0/0/0 Lore% 31 Gallery% 44 Achievement% 33 Wizard Run 0 Options --------- ASCII 0 Keyboard 0 Movement Numpad Keybinds 0 Fullscreen 1 Font 18/SmallcapsGlow Map View 76x50 Tactical HUD 1 Map Filters NONE Filters NONE Steam 1 RUN: cdfe3900-71f5-4e4c-ac65-f0be780386e6